Cogmind - Beta 14 @@@ ROGUE MODE // 2024.09.28 @ 11:33:04 Player: Mutetourette Result: Self-destructed Performance ------------- Evolutions (4) 2000 Regions Visited (8) 1600 Robots Destroyed (82) 410 Value Destroyed (2118) 2118 Prototype IDs (5) 100 Alien Tech Used (0) 0 Bonus (286) 286 TOTAL SCORE: 6514 Bonus ------- Follower Combat Kills 328 Friendly Fire -42 Cogmind --------- Core Integrity 647/850 Matter 399/450 Energy 150/150 System Corruption 0% Temperature Critical (553) Movement Treading (240) Ox1 Location -6/Extension Parts ------- > --- POWER (1) -------- Micro Nuclear Core > --- PROPULSION (4) --- Light Treads Improved Medium Treads > --- UTILITY (7) ------ Improved Heat Sink Large Storage Unit Compact Matter Pod Matter Filter Hardened Medium Armor Plating Improved Light Armor Plating > --- WEAPON (3) ------- Enhanced Autogun Coil Gun Flak Cannon > --- INVENTORY (15) --- Light Nuclear Core Light Treads Light Treads Improved Treads Improved Signal Interpreter Improved Targeting Computer Phase Cannon Coil Gun Heavy Machine Gun Scythe Peak State ------------ > --- POWER ------------ Light Angular Momentum Engine > --- PROPULSION ------- Improved Treads Armored Treads Armored Treads Improved Medium Treads > --- UTILITY ---------- Improved Heat Sink Large Storage Unit Matter Filter Phase Shifter Hardened Medium Armor Plating Hardened Medium Armor Plating Improved Light Armor Plating > --- WEAPON ----------- Enhanced Autogun Coil Gun Flak Cannon > --- INVENTORY -------- Light Nuclear Core Light Treads Light Treads Light Treads Light Treads Improved Treads Compact Matter Pod Improved Signal Interpreter Improved Targeting Computer Phase Cannon Coil Gun Heavy Machine Gun Scythe [Rating: 55] Favorites ----------- Power Light Nuclear Core Engine Heavy Ion Engine Power Core Light Nuclear Core Propulsion Improved Treads Treads Improved Treads Leg Aluminum Leg Utility Large Storage Unit Device Drone Bay Storage Large Storage Unit Protection Hardened Medium Armor Plating Weapon Enhanced Autogun Energy Gun Beam Rifle Energy Cannon Ion Cannon Ballistic Gun Enhanced Autogun Ballistic Cannon Flak Cannon Launcher Missile Launcher Build | -11 -10 -9 -9 -8 -8 -8 -6 -6 ------- Run | Yrd Mat Mat Min Mat Sto Rec Fac Ext Slots Evolved 8 | . . 2 . 2 . . 4 . Power . | . . . . . . . . . Propulsion 2 | . . 1 . 1 . . . . Utility 5 | . . 1 . 1 . . 3 . Weapon 1 | . . . . . . . 1 . Parts Attached 92 | 8 3 16 4 15 23 3 12 8 Power 8 | 1 . 1 . 3 1 . . 2 Engine 4 | 1 . 1 . 1 . . . 1 Core 4 | . . . . 2 1 . . 1 Reactor . | . . . . . . . . . Propulsion 23 | 2 1 5 . 5 5 2 1 2 Treads 20 | . . 5 . 5 5 2 1 2 Leg 3 | 2 1 . . . . . . . Wheel . | . . . . . . . . . Hover . | . . . . . . . . . Flight . | . . . . . . . . . Utility 36 | 2 2 6 . 4 12 . 6 4 Device 20 | 1 2 3 . 2 5 . 5 2 Storage 4 | 1 . 2 . . . . . 1 Processor . | . . . . . . . . . Hackware . | . . . . . . . . . Protection 12 | . . 1 . 2 7 . 1 1 Artifact . | . . . . . . . . . Weapon 25 | 3 . 4 4 3 5 1 5 . Energy Gun 12 | 3 . 2 4 1 2 . . . Energy Cannon 2 | . . 2 . . . . . . Ballistic Gun 8 | . . . . 1 3 1 3 . Ballistic Cannon 1 | . . . . . . . 1 . Launcher 2 | . . . . 1 . . 1 . Special Weapon . | . . . . . . . . . Impact Weapon . | . . . . . . . . . Slashing Weapon . | . . . . . . . . . Piercing Weapon . | . . . . . . . . . Special Melee Weapon . | . . . . . . . . . Unidentified Prototypes 3 | . . 2 . . 1 . . . Parts Lost 11 | . . . . 2 . . 1 8 Power 1 | . . . . 1 . . . . Propulsion 4 | . . . . . . . . 4 Utility 5 | . . . . 1 . . . 4 Weapon 1 | . . . . . . . 1 . Highest Loss Streak 3 | . . . . 2 . . 1 3 To Critical Strikes . | . . . . . . . . . Average Slot Usage (%) 97 | . 100 98 100 95 99 100 92 94 Engine 2 | . 14 11 11 4 . . . . Core 5 | . . . . 4 9 9 6 5 Treads 29 | . . 27 33 36 35 36 26 25 Leg 2 | . 28 3 . . . . . . Device 14 | . 14 21 22 16 12 9 12 14 Storage 8 | . 14 11 11 9 9 9 6 6 Protection 13 | . . . . 6 14 18 20 20 Energy Gun 7 | . 28 17 19 4 9 . . . Ballistic Gun 9 | . . . . 8 8 18 13 13 Ballistic Cannon 1 | . . . . . . . . 6 Peak Build Rating 55 | 9 9 19 19 25 34 37 51 55 Average Rating 32 | 5 8 16 17 19 30 34 48 50 On Entrance 21 | . 9 8 19 17 25 33 37 49 Naked Turns . | . . . . . . . . . Heaviest Build 78 | 13 13 56 42 37 53 53 77 78 Greatest Support 93 | 20 20 60 60 86 89 86 93 93 Greatest Overweight (x) 1 | 1 . 1 . . . . . 1 Average Overweight (x) . | . . . . . . . . . Largest Inventory Capacity 20 | 8 8 20 15 15 15 15 15 15 Average Capacity 14 | 7 8 13 15 15 15 15 15 15 Most Carried 15 | 8 8 15 15 15 15 15 13 15 Average Carried 12 | 4 7 12 13 13 14 14 9 11 Final Capacity 15 | 8 8 15 15 15 15 15 15 15 Final Carried 15 | 5 8 15 14 13 15 15 10 10 Class Distribution -------------------- 51% | Mutant 28% | Tank 14% | Scavenger-Mutant 5% | Commander-Mutant Dominant Class ---------------- Mutant | -10/Materials Mutant | -9/Materials Mutant | -9/Mines Scavenger-Mutant | -8/Materials Mutant | -8/Storage Mutant | -8/Recycling Tank | -6/Factory Tank | -6/Extension Resources | -11 -10 -9 -9 -8 -8 -8 -6 -6 ----------- Run | Yrd Mat Mat Min Mat Sto Rec Fac Ext Matter Collected 2433 | 280 30 444 52 261 380 44 387 555 Remotely . | . . . . . . . . . Salvage Created 2672 | 55 301 465 146 212 823 . 347 323 Parts 161 | 6 20 30 23 14 40 . 12 16 Haulers Intercepted 8 | . 1 2 . . 5 . . . Recyclers Shooed 6 | . 1 1 . . 1 . 1 2 Parts Field Recycled . | . . . . . . . . . Retrieved Matter . | . . . . . . . . . Parts Self-Destructed . | . . . . . . . . . Prevented . | . . . . . . . . . Kills | -11 -10 -9 -9 -8 -8 -8 -6 -6 ------- Run | Yrd Mat Mat Min Mat Sto Rec Fac Ext Combat Hostiles Destroyed 53 | . 7 7 10 6 10 . 7 6 Guns 35 | . 7 6 5 1 9 . 2 5 Cannons 6 | . . 1 3 . . . 1 1 AOE 11 | . . . 2 5 . . 4 . Classes Destroyed 14 | 1 5 1 . . 3 . 2 2 Worker 4 | . . . . . 2 . 2 . Builder 4 | . 1 . . . 1 . 2 . Tunneler 4 | 3 . 1 . . . . . . Hauler 8 | . 1 2 . . 5 . . . Recycler 2 | . . . . . 1 . 1 . Mechanic 1 | . . . . . . . . 1 Operator 1 | . . . . . . . 1 . Watcher 5 | . 3 1 . . . . . 1 Swarmer 16 | . 6 . 10 . . . . . Grunt 21 | . 1 5 . 5 2 . 4 4 Brawler 1 | . . . . . . . 1 . Duelist 2 | . . . . . 1 . 1 . Sentry 12 | . . 2 . 1 7 . 1 1 Hunter 1 | . . . . . . . . 1 Best Kill Streak 7 | 3 4 6 4 3 4 . 7 4 Combat Bots Only 4 | . 3 4 4 3 2 . 2 4 Max Kills in Single Turn 3 | 1 1 1 3 1 1 . 2 1 Gunslinging 1 | . . . 1 . . . . . Exploded 2 | . . . 2 1 . . 1 . Melee . | . . . . . . . . . Uniques/NPCs Destroyed . | . . . . . . . . . Combat | -11 -10 -9 -9 -8 -8 -8 -6 -6 -------- Run | Yrd Mat Mat Min Mat Sto Rec Fac Ext Hostile Shots Fired 485 | . 21 30 45 38 64 . 69 218 Missed 155 | . 6 8 13 9 17 . 23 79 Damage Taken 4527 | . 167 237 288 578 787 . 770 1700 Core 433 | . 25 47 45 33 80 . 34 169 Absorbed by Shields . | . . . . . . . . . Core Remaining (%) 86 | 100 90 . 77 . . 79 . . Volleys Fired 203 | 3 25 21 14 18 67 . 29 26 Largest 3 | 2 2 2 2 2 2 . 3 3 Hottest 120 | 100 100 120 120 79 112 . 99 99 Shots Fired 426 | 6 50 42 28 36 134 . 65 65 Gun 361 | 6 50 32 10 29 134 . 48 52 Cannon 42 | . . 10 18 . . . 1 13 Launcher 23 | . . . . 7 . . 16 . Special . | . . . . . . . . . Kinetic 172 | . . . . 18 40 . 49 65 Thermal 205 | 6 50 26 18 11 94 . . . Explosive 23 | . . . . 7 . . 16 . Electromagnetic 26 | . . 16 10 . . . . . Robot Hit Streak 16 | 3 6 16 6 10 11 . 7 10 Robot Miss Streak 7 | 1 3 2 5 4 3 . 6 7 Penetration Max 1 | . . . . . . . . 1 Secondary Targets 6 | . . 2 2 . 2 . . . Max Gunslinging Chain 1 | . . 1 1 . 1 . . . Shots Hit Robots 273 | 3 28 35 13 25 86 . 38 45 Core Hits 149 | 4 16 20 10 12 26 1 33 27 Critical Kills 2 | . . . . . . . . 2 Critical Parts Destroyed 2 | . . . . . . . . 2 Critical Strikes 17 | . 4 1 . 1 7 . . 4 Burn 13 | . 4 1 . 1 7 . . . Destroy 4 | . . . . . . . . 4 Melee Attacks . | . . . . . . . . . Impact . | . . . . . . . . . Slashing . | . . . . . . . . . Piercing . | . . . . . . . . . Sneak Attacks . | . . . . . . . . . Combat Hostiles . | . . . . . . . . . Follow-up Attacks . | . . . . . . . . . Damage Inflicted 6002 | 44 369 615 284 748 1351 11 1590 990 Guns 3855 | 37 369 433 96 330 1328 . 498 764 Cannons 547 | . . 181 136 . . . 28 202 Explosions 1509 | . . . 52 418 . . 1039 . Melee . | . . . . . . . . . Ramming 91 | 7 . 1 . . 23 11 25 24 Kinetic 2130 | . . . . 169 469 . 526 966 Thermal 1983 | 37 369 369 188 161 859 . . . Explosive 1457 | . . . . 418 . . 1039 . Electromagnetic 341 | . . 245 96 . . . . . Impact . | . . . . . . . . . Slashing . | . . . . . . . . . Piercing . | . . . . . . . . . Highest Corruption 2 | . 2 . . . . . . . Average Corruption 2 | . 2 . . . . . . . Corruption Purged . | . . . . . . . . . Corruption Blocked . | . . . . . . . . . Effects 1 | . 1 . . . . . . . Data Loss (minor) 1 | . 1 . . . . . . . Overload Shots . | . . . . . . . . . Overflow Damage 14 | . . . 8 . . . 6 . Projectiles 8 | . . . 8 . . . . . Explosions 6 | . . . . . . . 6 . Melee . | . . . . . . . . . Knockbacks 6 | . . . . . . . . 6 Impact . | . . . . . . . . . Kinetic 6 | . . . . . . . . 6 Secondary . | . . . . . . . . . Self-Inflicted Damage 245 | . . . 33 102 . . 110 . Shots 9 | . . . 1 4 . . 4 . Rammed 7 | . . 1 . . 1 2 . 3 Targets Rammed 13 | 2 . 2 . . 3 2 1 3 Kicked 2 | 2 . . . . . . . . Crushed 4 | . . 1 . . 2 . 1 . Highest Temperature 590 | 40 195 228 216 315 322 . 395 590 Average Temperature 114 | 20 64 79 102 161 114 . 179 116 Received Heat Transfer 2087 | . 27 81 . 297 288 . 318 1076 Effects 8 | . . . 1 . 4 . 2 1 Shutdowns 1 | . . . . . . . 1 . Energy Bleed 3 | . . . 1 . 1 . 1 . Interference 3 | . . . . . 3 . . . Matter Decay 1 | . . . . . . . . 1 Siege Activations . | . . . . . . . . . Robots Corrupted . | . . . . . . . . . Combat Hostiles . | . . . . . . . . . Parts Fried . | . . . . . . . . . Impact Corruptions . | . . . . . . . . . Robots Melted 3 | . . . . . 3 . . . Combat Hostiles 1 | . . . . . 1 . . . Parts Melted 19 | . 4 2 . . 13 . . . Heat Transferred 5872 | 111 1406 851 322 481 2701 . . . Parts Sabotaged . | . . . . . . . . . Parts Stolen . | . . . . . . . . . Parts Stripped . | . . . . . . . . . Power Chain Reactions 1 | . . . 1 . . . . . Alert | -11 -10 -9 -9 -8 -8 -8 -6 -6 ------- Run | Yrd Mat Mat Min Mat Sto Rec Fac Ext Peak Influence 332 | 15 332 175 306 313 227 58 244 231 Initial 131 | . 9 58 67 118 131 58 2 119 Average 101 | 3 119 106 226 209 100 31 83 97 Maximum Alert Level 1 | . 1 . 1 1 1 . 1 1 Low Security (%) 88 | 100 75 100 26 46 93 100 83 97 Level 1 11 | . 24 . 73 53 6 . 16 2 Level 2 . | . . . . . . . . . Level 3 . | . . . . . . . . . Level 4 . | . . . . . . . . . Level 5 . | . . . . . . . . . High Security . | . . . . . . . . . Max Security . | . . . . . . . . . Squads Dispatched 12 | . . 2 . 4 3 . 1 2 Investigation 6 | . . 2 . 1 2 . . 1 Extermination . | . . . . . . . . . Reinforcement 3 | . . . . . 1 . 1 1 Assault . | . . . . . . . . . Garrison 3 | . . . . 3 . . . . Intercept . | . . . . . . . . . Searches Triggered . | . . . . . . . . . Construction Impeded . | . . . . . . . . . Haulers Reinforced . | . . . . . . . . . Active Scanning Responses . | . . . . . . . . . Cargo Convoy Interrupts . | . . . . . . . . . Stealth | -11 -10 -9 -9 -8 -8 -8 -6 -6 --------- Run | Yrd Mat Mat Min Mat Sto Rec Fac Ext Distress Signals 8 | . 2 2 . 1 2 . 1 . Communications Jammed . | . . . . . . . . . Distress Signals . | . . . . . . . . . Times Spotted 106 | . 14 19 10 6 22 . 8 27 Peak Tracking Total 10 | . 4 10 4 3 4 . 3 9 Tactical Retreats 8 | . 4 . . . 1 . . 3 Traps | -11 -10 -9 -9 -8 -8 -8 -6 -6 ------- Run | Yrd Mat Mat Min Mat Sto Rec Fac Ext Traps Triggered 6 | . 2 1 . . 2 . . 1 Indirectly . | . . . . . . . . . Trap Hack Attempts . | . . . . . . . . . Triggered . | . . . . . . . . . Disarmed . | . . . . . . . . . Reprogrammed . | . . . . . . . . . Reused . | . . . . . . . . . Traps Extracted . | . . . . . . . . . Installed . | . . . . . . . . . Triggered . | . . . . . . . . . Machines | -11 -10 -9 -9 -8 -8 -8 -6 -6 ---------- Run | Yrd Mat Mat Min Mat Sto Rec Fac Ext Machines Disabled 2 | . . . . . . . 2 . Max in Single Turn 1 | . . . . . . . 1 . Machines Repaired . | . . . . . . . . . Machines Dismantled . | . . . . . . . . . Machines Sabotaged . | . . . . . . . . . Overloaded Fab Kills . | . . . . . . . . . Hacking | -11 -10 -9 -9 -8 -8 -8 -6 -6 --------- Run | Yrd Mat Mat Min Mat Sto Rec Fac Ext Machines Accessed 26 | . 2 1 1 2 7 8 2 3 Terminals 19 | . 2 1 1 1 4 5 2 3 Fabricators . | . . . . . . . . . Repair Stations 1 | . . . . . 1 . . . Recycling Units 4 | . . . . . 1 3 . . Scanalyzers . | . . . . . . . . . Garrison Access 2 | . . . . 1 1 . . . Total Hacks 37 | . 3 2 3 2 9 9 4 5 Successful 21 | . 1 1 . 2 6 8 1 2 Failed 16 | . 2 1 3 . 3 1 3 3 Catastrophic 2 | . . . . . . 1 . 1 Database Lockouts . | . . . . . . . . . Manual 15 | . 3 2 3 2 4 . . 1 Terminals 27 | . 3 2 3 1 4 5 4 5 Fabricators . | . . . . . . . . . Repair Stations 2 | . . . . . 2 . . . Recycling Units 5 | . . . . . 1 4 . . Scanalyzers . | . . . . . . . . . Garrison Access 3 | . . . . 1 2 . . . Terminal Hacks 11 | . . . . . 4 4 1 2 Record 2 | . . . . . 1 1 . . Prototype ID Bank 1 | . . . . . . 1 . . Open Door 5 | . . . . . 3 . 1 1 Alert Level 1 | . . . . . . 1 . . Dispatch Records 2 | . . . . . . 1 . 1 Fabricator Hacks . | . . . . . . . . . Repair Station Hacks . | . . . . . . . . . Recycling Unit Hacks 4 | . . . . . . 4 . . Report Inventory 3 | . . . . . . 3 . . Retrieve Components 1 | . . . . . . 1 . . Scanalyzer . | . . . . . . . . . Garrison Access Hacks . | . . . . . . . . . Unauthorized Hacks 6 | . 1 1 . 2 2 . . . Terminals 3 | . 1 1 . 1 . . . . Assimilate 3 | . 1 1 . 1 . . . . Fabricators . | . . . . . . . . . Repair Stations . | . . . . . . . . . Recycling Units 1 | . . . . . 1 . . . Tunnel 1 | . . . . . 1 . . . Scanalyzers . | . . . . . . . . . Garrison Access 2 | . . . . 1 1 . . . Reprogram 2 | . . . . 1 1 . . . Data Cores Recovered . | . . . . . . . . . Used . | . . . . . . . . . Hacking Detections 12 | . 1 1 1 1 2 3 1 2 Full Trace Events 1 | . . . . . . . . 1 Feedback Events . | . . . . . . . . . Feedback Blocked . | . . . . . . . . . Robot Schematics Acquired . | . . . . . . . . . Robots Built . | . . . . . . . . . Authchips . | . . . . . . . . . Time . | . . . . . . . . . Total Robot Build Rating . | . . . . . . . . . Part Schematics Acquired . | . . . . . . . . . Parts Built . | . . . . . . . . . Authchips . | . . . . . . . . . Time . | . . . . . . . . . Total Part Build Rating . | . . . . . . . . . Parts Repaired . | . . . . . . . . . Time . | . . . . . . . . . Parts Recycled . | . . . . . . . . . Recycled Matter . | . . . . . . . . . Retrieved Matter . | . . . . . . . . . Retrieved Components 3 | . . . . . . 3 . . Parts Scanalyzed . | . . . . . . . . . Part Schematics Acquired . | . . . . . . . . . Parts Damaged . | . . . . . . . . . Bothacking | -11 -10 -9 -9 -8 -8 -8 -6 -6 ------------ Run | Yrd Mat Mat Min Mat Sto Rec Fac Ext Used RIF Installer . | . . . . . . . . . Robots Hacked . | . . . . . . . . . Non-combat . | . . . . . . . . . Combat . | . . . . . . . . . Robot Hacks Applied . | . . . . . . . . . Relay Couplers Released . | . . . . . . . . . Fabnet Peak Effective % . | . . . . . . . . . Robots Rewired . | . . . . . . . . . Allies Hacked . | . . . . . . . . . Hacks Repelled . | . . . . . . . . . Allies | -11 -10 -9 -9 -8 -8 -8 -6 -6 -------- Run | Yrd Mat Mat Min Mat Sto Rec Fac Ext Total Allies 14 | . . . . 1 11 . . 2 Largest Group 10 | . . . . 1 10 . . 2 Highest-Rated Group 173 | . . . . 16 173 . . 50 Highest-Rated Ally 29 | . . . . 16 29 . . 25 Total Orders 23 | . . . . . 15 2 6 . ROAM 1 | . . . . . 1 . . . EXPLORE 17 | . . . . . 10 1 6 . RETURN 5 | . . . . . 4 1 . . Ally Attacks 114 | . . . . 8 94 . . 12 Total Damage 1260 | . . . . 44 928 . . 288 Kills 12 | . . . . . 9 . . 3 Allies Corrupted 1 | . . . . . . . 1 . Allies Melted . | . . . . . . . . . Intel | -11 -10 -9 -9 -8 -8 -8 -6 -6 ------- Run | Yrd Mat Mat Min Mat Sto Rec Fac Ext Robot Analysis Total . | . . . . . . . . . Derelict Logs Recovered . | . . . . . . . . . Drone Launches 27 | . . . . . 15 2 10 . Drone Recoveries 14 | . . . . . 10 2 2 . Exploration | -11 -10 -9 -9 -8 -8 -8 -6 -6 ------------- Run | Yrd Mat Mat Min Mat Sto Rec Fac Ext Turns Passed 6924 | 110 435 622 331 313 2258 789 735 1331 Spaces Moved 2968 | 67 249 260 173 130 833 361 189 706 Core 19 | 19 . . . . . . . . Treads 2586 | . . 194 173 130 833 361 189 706 Legs 363 | 48 249 66 . . . . . . Wheels . | . . . . . . . . . Hover . | . . . . . . . . . Flight . | . . . . . . . . . Fastest Speed 50 | 50 120 120 160 160 156 160 165 162 Average Speed 156 | 106 120 156 160 160 159 162 165 164 Slowest Speed 240 | 120 120 240 160 160 160 165 165 240 Overloaded Moves . | . . . . . . . . . Propulsion Burnouts . | . . . . . . . . . Robots Hopped . | . . . . . . . . . Cave-ins Triggered . | . . . . . . . . . Exploration Rate (%) 41 | 3 37 21 39 14 97 95 17 50 Regions Visited 8 Branch Regions 4 Pre-discovered Areas 2 | . . . . . 2 . . . Known Exits Taken . | . . . . . . . . . Unknown Exits Taken 8 | 1 1 1 1 1 1 1 1 . Scrap Searched . | . . . . . . . . . Spaces Dug . | . . . . . . . . . Terrain Destroyed 193 | . . 1 14 43 . . 134 1 Melee . | . . . . . . . . . Projectile 13 | . . 1 9 . . . 2 1 AOE 180 | . . . 5 43 . . 132 . Terrain Rammed . | . . . . . . . . . Walls Destroyed . | . . . . . . . . . Machines Disabled . | . . . . . . . . . Actions | -11 -10 -9 -9 -8 -8 -8 -6 -6 --------- Run | Yrd Mat Mat Min Mat Sto Rec Fac Ext Total 4881 | 98 335 434 200 200 1649 564 573 828 Wait 1467 | 9 53 104 5 15 684 193 329 75 Move 2961 | 67 248 259 172 129 832 360 188 706 Hop . | . . . . . . . . . Pick Up 79 | 10 4 19 2 13 14 2 7 8 Fast Attach 14 | 2 . 4 . . 8 . . . Attach 39 | 5 . 4 2 7 3 . 10 8 Detach . | . . . . . . . . . Swap 39 | 1 3 8 2 8 12 3 2 . Drop 67 | . 2 13 3 10 26 4 7 2 Fire 203 | 3 25 21 14 18 67 . 29 26 Melee . | . . . . . . . . . Ram . | . . . . . . . . . Kick 1 | 1 . . . . . . . . Crush 11 | . . 2 . . 3 2 1 3 Escape Stasis . | . . . . . . . . . Rewire . | . . . . . . . . . Trap . | . . . . . . . . . Miscellaneous . | . . . . . . . . . Route ------- -11/Scrapyard -10/Materials (discovered 2 exits: *Mat x2) -9/Materials -9/Mines -8/Materials -8/Storage (discovered 2 exits: [*Fac] / *Rec) -8/Recycling -6/Factory -6/Extension History --------- Turn | Location | Event 9 | -11/Scrapyard | Discovered new exit (range 14) 111 | -11/Scrapyard | Entered Materials 221 | -10/Materials | Discovered new exit (range 9) 310 | -10/Materials | Build established: Mutant 503 | -10/Materials | Discovered new exit (range 15) 546 | -10/Materials | Entered another Materials area 546 | -9/Materials | Evolved 2 slots: Propulsion x1, Utility x1 1157 | -9/Materials | Discovered new exit (range 8) 1168 | -9/Materials | Entered Mines 1301 | -9/Mines | Received a Rocket Launcher from a helpful Derelict 1467 | -9/Mines | Discovered new exit (range 9) 1499 | -9/Mines | Entered Materials 1499 | -8/Materials | Evolved 2 slots: Propulsion x1, Utility x1 1511 | -8/Materials | Garrison activated, responded to threat 1609 | -8/Materials | Discovered new exit (range 14) 1812 | -8/Materials | Entered Storage 1812 | -8/Storage | Accompanied by 1 ally 2043 | -8/Storage | Build established: Scavenger-Mutant 2518 | -8/Storage | Learned location of Armory (-4) 2558 | -8/Storage | Assisted by bots powering up and referring to "LRC-V3" 2855 | -8/Storage | Build established: Commander-Mutant 2947 | -8/Storage | Lost 8 allies 3199 | -8/Storage | Build established: Mutant 3388 | -8/Storage | Lost 3 allies 3508 | -8/Storage | Discovered new exit (range 9) 3790 | -8/Storage | Used back door to open Recycling access 3790 | -8/Storage | Discovered new exit (range 4) 4070 | -8/Storage | Entered Recycling 4236 | -8/Recycling | Discovered new exit (range 48) 4859 | -8/Recycling | Entered Factory 4859 | -6/Factory | Evolved 4 slots: Utility x3, Weapon x1 5157 | -6/Factory | Build established: Tank 5586 | -6/Factory | Discovered new exit (range 6) 5594 | -6/Factory | Entered Extension 5834 | -6/Extension | Spotted B-75 Beast 6200 | -6/Extension | Rescued a captive Derelict 6209 | -6/Extension | Rescued a captive Derelict 6918 | -6/Extension | Spotted B-75 Beast 6925 | -6/Extension | Self-destructed Last Messages --------------- 06782_ T-07 Excavator exits Transfer Station. 06786_ K-01 Serf exits Transfer Station. 06786_ U-05 Engineer exits Transfer Station. 06786_ K-01 Serf exits Transfer Station. 06789_ K-01 Serf enters Transfer Station. 06794_ K-01 Serf exits Transfer Station. 06794_ U-05 Engineer exits Transfer Station. 06794_ T-07 Excavator enters Transfer Station. 06798_ A-15 Conveyor enters Transfer Station. 06911_ Hrd. Medium Armor Plating destroyed. 06914_ K-01 Serf destroyed. 06920_ Critical hit (Meltdown: +330). 06920_ U-05 Engineer destroyed. 06921_ R-10 Processor collects Med. Matter Pod. 06922_ Arm. Treads destroyed. 06922_ Lgt. Treads destroyed. 06923_ Critical hit (Meltdown: +320). 06925_ Overheating: Matter decay (-44). 06925_ R-10 Processor collects Welding Torch. Map ----- +----------------------------------------------------+ | ! #??###### "## #????????????????????? | | ######### ##" #????????????????????? | | " + #????????????????????? | | Y" ######### #""" #????????????????????? | | "" [#???????########## #??# #????????????????????? | | #####????????????????# #??# #????????????????????? | | ?????????????????????# #??# #????????????????????? | | ?????????????????????# #??# #????????????????????? | | ????????????????????## ##?# #????????????????????? | | ????????????????????# #?# #????????????????????? | | ????????????????????# #?# #????????????????????? | | ????????????????????# #?# #????????????????????? | | ????????????????????#####?# #????????????????????? | | ??????????????????????????# #????????????????????? | | ??????????????????????????# #????????????????????? | | ??????????????????????????# #????????????????????? | | ??????????????????????????# #????????????????????? | | ??????????????????????????# #??##??#?????????????? | | ????????????????????????### ### ## ##????????????? | | ????????????????????????#"" " ""???????????? | | ????????????????????????# " Y Y "g??????????? | | ????????????????????????# g l ?????????? | | ????????????????????????# g ?????????? | | ######################### ????????? | | ????????? | | @ ????????? | | k% R ????????? | | % u = ????????? | | A R RBBt u u ?????????? | | ######################### =BB BB ?????????? | | ????????????????????????# BB ??????????? | | ????????????????????????# ??????????? | | ????????????????????????? ??????????? | | ????????????????????????? ???????????? | | ?????????????????????????#####T#"""###???????????? | | ??????????????????????????????##?????????????????? | | ?????????????????????????????????????????????????? | | | | | | | | | | | | | | | | | | | | | | | | | | | +----------------------------------------------------+ Best States ------------- Heat Dissipation 51 Energy Generation 18 Energy Capacity 280 Matter Stores 438 Matter Capacity 450 Sight Range 16 Robot Scan Range 15 Terrain Scan Range 16 Terrain Scan Density 10 Armor Coverage 1200 Phase Shifting 5 Evasion (%) 55 Recoil Reduction 4 Matter Filtering 30 Particle Charging 15 Item Schematics ----------------- None Robot Schematics ------------------ None Fabricated ------------ Nothing Alien Tech Used ----------------- None Achievements -------------- None Challenges ------------ None Game ------ Seed ImprinterHybridPit Manual? 0 Play Time 01:12:45 Cumulative 16.8 hours Start 2024.09.28 @ 09:51:53 End 2024.09.28 @ 11:33:04 Sessions 3 Manual Loads 0 Difficulty Rogue Special Mode None Game No. 22 Rogue 22 Adventurer 0 Explorer 0 Win Type - Total 0 Types 0/0/0/0/0/0/0/0/0 Lore% 6 Gallery% 19 Achievement% 19 Wizard Run 0 Options --------- Layout 1 ASCII 0 Keyboard 0 Movement Mouse Keybinds 0 Fullscreen 1 Font 24/Smallcaps Map View 50x35 Zoom Use 0% Tactical HUD 1 Map Filters NONE Filters NONE Steam 1 RUN: fe51b8fc-7068-4048-9946-b874c44c7ef8